Cogmind - Beta 14 @@@ ROGUE MODE // 2024.09.26 @ 03:16:57 Player: feudal wulf Result: Destroyed by as-68726 with Assembled Heavy Rifle Performance ------------- Evolutions (0) 0 Regions Visited (4) 800 Robots Destroyed (17) 85 Value Destroyed (555) 555 Prototype IDs (0) 0 Alien Tech Used (0) 0 Bonus (60) 60 TOTAL SCORE: 1500 Bonus ------- Follower Combat Kills 60 Cogmind --------- Core Integrity 0/250 Matter 300/300 Energy 125/125 System Corruption 8% Temperature Warm (193) Movement Walking (190) Ox1 Location -9/Mines Parts ------- > --- POWER (1) -------- Light Ion Engine > --- PROPULSION (2) --- Aluminum Leg > --- UTILITY (2) ------ Small Storage Unit > --- WEAPON (2) ------- Particle Gun > --- INVENTORY (8) ---- Light Deuterium Engine Aluminum Leg Combat Airjet Flight Unit Improved Signal Interpreter Hardened Light Armor Plating Grenade Launcher Makeshift Axe Peak State ------------ > --- POWER ------------ Light Nuclear Core > --- PROPULSION ------- Aluminum Leg Aluminum Leg > --- UTILITY ---------- Small Storage Unit Compact Matter Pod > --- WEAPON ----------- Particle Gun Assault Rifle > --- INVENTORY -------- Light Ion Engine Light Deuterium Engine Aluminum Leg Flight Unit Improved Signal Interpreter Hardened Light Armor Plating Grenade Launcher Makeshift Axe [Rating: 13] Favorites ----------- Power Light Nuclear Core Engine Ion Engine Power Core Light Nuclear Core Propulsion Aluminum Leg Leg Aluminum Leg Wheel Compact Wheel Utility Small Storage Unit Storage Small Storage Unit Protection Hardened Light Armor Plating Weapon EM Pulse Gun Energy Gun EM Pulse Gun Ballistic Gun Assault Rifle Launcher Grenade Launcher Build | -11 -10 -10 -10 -9 ------- Run | Yrd Mat Min Exi Min Slots Evolved . | . . . . . Power . | . . . . . Propulsion . | . . . . . Utility . | . . . . . Weapon . | . . . . . Parts Attached 21 | 6 7 6 1 1 Power 5 | 1 2 1 . 1 Engine 4 | 1 2 . . 1 Core 1 | . . 1 . . Reactor . | . . . . . Propulsion 4 | 2 . 2 . . Treads . | . . . . . Leg 2 | . . 2 . . Wheel 2 | 2 . . . . Hover . | . . . . . Flight . | . . . . . Utility 4 | 1 2 1 . . Device . | . . . . . Storage 2 | 1 . 1 . . Processor . | . . . . . Hackware . | . . . . . Protection 2 | . 2 . . . Artifact . | . . . . . Weapon 8 | 2 3 2 1 . Energy Gun 4 | 2 1 . 1 . Energy Cannon . | . . . . . Ballistic Gun 3 | . 1 2 . . Ballistic Cannon . | . . . . . Launcher 1 | . 1 . . . Special Weapon . | . . . . . Impact Weapon . | . . . . . Slashing Weapon . | . . . . . Piercing Weapon . | . . . . . Special Melee Weapon . | . . . . . Unidentified Prototypes . | . . . . . Parts Lost 7 | . 2 2 . 3 Power 1 | . . 1 . . Propulsion 1 | . . . . 1 Utility 2 | . . 1 . 1 Weapon 3 | . 2 . . 1 Highest Loss Streak 3 | . 2 1 . 3 To Critical Strikes . | . . . . . Average Slot Usage (%) 90 | . 93 76 100 97 Engine 6 | . 14 3 . 4 Core 7 | . . 10 14 9 Leg 12 | . . 7 28 27 Wheel 10 | . 21 10 . . Storage 19 | . 14 15 28 26 Protection 4 | . 13 . . . Energy Gun 15 | . 25 8 11 14 Ballistic Gun 12 | . 2 19 16 14 Peak Build Rating 13 | 6 8 12 13 13 Average Rating 9 | 4 7 8 12 12 On Entrance 7 | . 6 8 12 13 Naked Turns . | . . . . . Heaviest Build 19 | 14 19 14 16 16 Greatest Support 26 | 26 26 20 20 20 Greatest Overweight (x) 1 | . 1 1 . 1 Average Overweight (x) . | . . . . . Largest Inventory Capacity 8 | 8 8 8 8 8 Average Capacity 7 | 6 8 8 8 8 Most Carried 8 | 2 7 8 8 8 Average Carried 6 | . 5 7 7 7 Final Capacity 8 | 8 8 8 8 8 Final Carried 8 | 2 6 8 8 8 Class Distribution -------------------- 60% | Mutant 39% | Scavenger-Mutant Dominant Class ---------------- Mutant | -10/Materials Mutant | -10/Mines Scavenger-Mutant | -10/Exiles Scavenger-Mutant | -9/Mines Resources | -11 -10 -10 -10 -9 ----------- Run | Yrd Mat Min Exi Min Matter Collected 531 | 167 155 146 . 63 Remotely . | . . . . . Salvage Created 615 | . 317 289 . 9 Parts 26 | . 13 13 . . Haulers Intercepted . | . . . . . Recyclers Shooed . | . . . . . Parts Field Recycled . | . . . . . Retrieved Matter . | . . . . . Parts Self-Destructed . | . . . . . Prevented . | . . . . . Kills | -11 -10 -10 -10 -9 ------- Run | Yrd Mat Min Exi Min Combat Hostiles Destroyed 16 | . 6 9 . 1 Guns 15 | . 6 8 . 1 AOE 1 | . . 1 . . Classes Destroyed 4 | . 2 1 . 1 Worker 2 | . 2 . . . Swarmer 3 | . . 3 . . Grunt 12 | . 6 6 . . Assembled 1 | . . . . 1 Best Kill Streak 3 | . 3 2 . 1 Combat Bots Only 2 | . 2 2 . 1 Max Kills in Single Turn 1 | . 1 1 . 1 Gunslinging . | . . . . . Exploded 1 | . . 1 . . Melee . | . . . . . Uniques/NPCs Destroyed . | . . . . . Combat | -11 -10 -10 -10 -9 -------- Run | Yrd Mat Min Exi Min Hostile Shots Fired 110 | . 35 54 . 21 Missed 33 | . 11 17 . 5 Damage Taken 1180 | . 355 501 . 324 Core 252 | . 60 144 . 48 Absorbed by Shields . | . . . . . Core Remaining (%) 100 | 100 . . . . Volleys Fired 79 | . 25 36 8 10 Largest 2 | . 2 2 2 2 Hottest 85 | . 85 85 85 85 Shots Fired 144 | . 41 67 16 20 Gun 144 | . 41 67 16 20 Cannon . | . . . . . Launcher . | . . . . . Special . | . . . . . Kinetic 78 | . 12 48 8 10 Thermal 40 | . 3 19 8 10 Explosive . | . . . . . Electromagnetic 26 | . 26 . . . Robot Hit Streak 16 | . 16 3 . 4 Robot Miss Streak 6 | . 3 5 . 6 Penetration Max . | . . . . . Secondary Targets 2 | . 1 1 . . Max Gunslinging Chain 1 | . 1 1 . . Shots Hit Robots 74 | . 32 35 . 7 Core Hits 32 | . 16 15 . 1 Critical Kills . | . . . . . Critical Parts Destroyed 1 | . . . 1 . Critical Strikes 2 | . 1 . 1 . Burn 1 | . 1 . . . Destroy 1 | . . . 1 . Melee Attacks . | . . . . . Impact . | . . . . . Slashing . | . . . . . Piercing . | . . . . . Sneak Attacks . | . . . . . Combat Hostiles . | . . . . . Follow-up Attacks . | . . . . . Damage Inflicted 1089 | . 508 464 13 104 Guns 858 | . 366 375 13 104 Cannons . | . . . . . Explosions 218 | . 129 89 . . Melee . | . . . . . Ramming 13 | . 13 . . . Kinetic 431 | . 94 284 13 40 Thermal 401 | . 157 180 . 64 Explosive . | . . . . . Electromagnetic 244 | . 244 . . . Impact . | . . . . . Slashing . | . . . . . Piercing . | . . . . . Highest Corruption 8 | . . . . 8 Average Corruption 5 | . . . . 5 Corruption Purged . | . . . . . Corruption Blocked . | . . . . . Effects 1 | . . . . 1 Energy Discharges 1 | . . . . 1 Overload Shots . | . . . . . Overflow Damage 5 | . . 5 . . Projectiles . | . . . . . Explosions 5 | . . 5 . . Melee . | . . . . . Knockbacks . | . . . . . Impact . | . . . . . Kinetic . | . . . . . Secondary . | . . . . . Self-Inflicted Damage 100 | . 6 94 . . Shots 2 | . . 2 . . Rammed 1 | . 1 . . . Targets Rammed 1 | . 1 . . . Kicked . | . . . . . Crushed . | . . . . . Highest Temperature 391 | . 321 391 240 216 Average Temperature 109 | . 103 108 122 121 Received Heat Transfer 366 | . 219 147 . . Effects 5 | . . 2 3 . Energy Bleed 2 | . . 1 1 . Interference 3 | . . 1 2 . Siege Activations . | . . . . . Robots Corrupted . | . . . . . Combat Hostiles . | . . . . . Parts Fried 1 | . 1 . . . Impact Corruptions . | . . . . . Robots Melted . | . . . . . Combat Hostiles . | . . . . . Parts Melted 1 | . . 1 . . Heat Transferred 868 | . 348 372 . 148 Parts Sabotaged . | . . . . . Parts Stolen . | . . . . . Parts Stripped . | . . . . . Power Chain Reactions 1 | . 1 . . . Alert | -11 -10 -10 -10 -9 ------- Run | Yrd Mat Min Exi Min Peak Influence 283 | . 234 283 . . Initial 23 | . . 23 . . Average 98 | . 89 145 . . Maximum Alert Level 1 | . 1 1 . . Low Security (%) 92 | 100 92 88 . 100 Level 1 7 | . 7 11 . . Level 2 . | . . . . . Level 3 . | . . . . . Level 4 . | . . . . . Level 5 . | . . . . . High Security . | . . . . . Max Security . | . . . . . Squads Dispatched 3 | . 2 1 . . Investigation 1 | . . 1 . . Extermination . | . . . . . Reinforcement 2 | . 2 . . . Assault . | . . . . . Garrison . | . . . . . Intercept . | . . . . . Searches Triggered . | . . . . . Construction Impeded . | . . . . . Haulers Reinforced . | . . . . . Active Scanning Responses . | . . . . . Cargo Convoy Interrupts . | . . . . . Stealth | -11 -10 -10 -10 -9 --------- Run | Yrd Mat Min Exi Min Distress Signals 1 | . 1 . . . Communications Jammed . | . . . . . Distress Signals . | . . . . . Times Spotted 39 | . 20 12 . 7 Peak Tracking Total 10 | . 4 3 . 10 Tactical Retreats 7 | . 4 2 . 1 Traps | -11 -10 -10 -10 -9 ------- Run | Yrd Mat Min Exi Min Traps Triggered 1 | . 1 . . . Indirectly . | . . . . . Trap Hack Attempts . | . . . . . Triggered . | . . . . . Disarmed . | . . . . . Reprogrammed . | . . . . . Reused . | . . . . . Traps Extracted . | . . . . . Installed . | . . . . . Triggered . | . . . . . Machines | -11 -10 -10 -10 -9 ---------- Run | Yrd Mat Min Exi Min Machines Disabled 5 | . 1 4 . . Max in Single Turn 4 | . 1 4 . . Machines Repaired . | . . . . . Machines Dismantled . | . . . . . Machines Sabotaged . | . . . . . Overloaded Fab Kills . | . . . . . Hacking | -11 -10 -10 -10 -9 --------- Run | Yrd Mat Min Exi Min Machines Accessed 6 | . 5 1 . . Terminals 3 | . 3 . . . Fabricators . | . . . . . Repair Stations . | . . . . . Recycling Units 2 | . 2 . . . Scanalyzers . | . . . . . Garrison Access . | . . . . . Total Hacks 11 | . 10 1 . . Successful 7 | . 6 1 . . Failed 4 | . 4 . . . Catastrophic 2 | . 2 . . . Database Lockouts . | . . . . . Manual 1 | . . . 1 . Terminals 5 | . 5 . . . Fabricators . | . . . . . Repair Stations . | . . . . . Recycling Units 5 | . 5 . . . Scanalyzers . | . . . . . Garrison Access . | . . . . . Terminal Hacks 4 | . 3 1 . . Open Door 1 | . . 1 . . Branch Access Points 1 | . 1 . . . Unreport Threat 1 | . 1 . . . Locate Traps 1 | . 1 . . . Fabricator Hacks . | . . . . . Repair Station Hacks . | . . . . . Recycling Unit Hacks 3 | . 3 . . . Retrieve Matter 3 | . 3 . . . Scanalyzer . | . . . . . Garrison Access Hacks . | . . . . . Unauthorized Hacks . | . . . . . Terminals . | . . . . . Fabricators . | . . . . . Repair Stations . | . . . . . Recycling Units . | . . . . . Scanalyzers . | . . . . . Garrison Access . | . . . . . Data Cores Recovered . | . . . . . Used . | . . . . . Hacking Detections 4 | . 4 . . . Full Trace Events 1 | . 1 . . . Feedback Events . | . . . . . Feedback Blocked . | . . . . . Robot Schematics Acquired . | . . . . . Robots Built . | . . . . . Authchips . | . . . . . Time . | . . . . . Total Robot Build Rating . | . . . . . Part Schematics Acquired . | . . . . . Parts Built . | . . . . . Authchips . | . . . . . Time . | . . . . . Total Part Build Rating . | . . . . . Parts Repaired . | . . . . . Time . | . . . . . Parts Recycled . | . . . . . Recycled Matter . | . . . . . Retrieved Matter . | . . . . . Retrieved Components . | . . . . . Parts Scanalyzed . | . . . . . Part Schematics Acquired . | . . . . . Parts Damaged . | . . . . . Bothacking | -11 -10 -10 -10 -9 ------------ Run | Yrd Mat Min Exi Min Used RIF Installer . | . . . . . Robots Hacked . | . . . . . Non-combat . | . . . . . Combat . | . . . . . Robot Hacks Applied . | . . . . . Relay Couplers Released . | . . . . . Fabnet Peak Effective % . | . . . . . Robots Rewired . | . . . . . Allies Hacked . | . . . . . Hacks Repelled . | . . . . . Allies | -11 -10 -10 -10 -9 -------- Run | Yrd Mat Min Exi Min Total Allies 5 | . . 3 . 2 Largest Group 3 | . . 3 . 2 Highest-Rated Group 49 | . . 40 . 49 Highest-Rated Ally 31 | . . 16 . 31 Total Orders . | . . . . . Ally Attacks 26 | . . 21 . 5 Total Damage 327 | . . 263 . 64 Kills 5 | . . 3 . 2 Allies Corrupted . | . . . . . Allies Melted . | . . . . . Intel | -11 -10 -10 -10 -9 ------- Run | Yrd Mat Min Exi Min Robot Analysis Total . | . . . . . Derelict Logs Recovered 3 | . . 1 . 2 Drone Launches . | . . . . . Drone Recoveries . | . . . . . Exploration | -11 -10 -10 -10 -9 ------------- Run | Yrd Mat Min Exi Min Turns Passed 2651 | 37 880 821 634 279 Spaces Moved 2093 | 30 748 607 505 203 Core 1 | 1 . . . . Treads . | . . . . . Legs 850 | . . 142 505 203 Wheels 1242 | 29 748 465 . . Hover . | . . . . . Flight . | . . . . . Fastest Speed 50 | 50 90 100 120 120 Average Speed 107 | 88 99 105 120 120 Slowest Speed 190 | 90 115 190 120 190 Overloaded Moves . | . . . . . Propulsion Burnouts . | . . . . . Robots Hopped . | . . . . . Cave-ins Triggered . | . . . . . Exploration Rate (%) 65 | 3 89 99 90 48 Regions Visited 4 Branch Regions 3 Pre-discovered Areas 3 | . . 1 . 2 Known Exits Taken 1 | . 1 . . . Unknown Exits Taken 3 | 1 . 1 1 . Scrap Searched 2 | . . 1 . 1 Spaces Dug . | . . . . . Terrain Destroyed 15 | . 3 12 . . Melee . | . . . . . Projectile . | . . . . . AOE 15 | . 3 12 . . Terrain Rammed . | . . . . . Walls Destroyed . | . . . . . Machines Disabled . | . . . . . Actions | -11 -10 -10 -10 -9 --------- Run | Yrd Mat Min Exi Min Total 2345 | 37 845 728 517 218 Wait 128 | . 54 72 . 2 Move 2089 | 29 747 606 504 203 Hop . | . . . . . Pick Up 16 | 2 7 5 1 1 Fast Attach 10 | 6 1 3 . . Attach 2 | . 2 . . . Detach . | . . . . . Swap 9 | . 4 3 1 1 Drop 9 | . 4 3 1 1 Fire 79 | . 25 36 8 10 Melee . | . . . . . Ram 1 | . 1 . . . Kick . | . . . . . Crush . | . . . . . Escape Stasis . | . . . . . Rewire 2 | . . . 2 . Trap . | . . . . . Miscellaneous . | . . . . . Route ------- -11/Scrapyard -10/Materials (discovered 4 exits: [*Mat x3] / *Min) -10/Mines (discovered 3 exits: [*Mat x2] / *Exi) -10/Exiles (discovered 2 exits: [*Min x2]) -9/Mines (discovered 1 exit: [*Mat]) History --------- Turn | Location | Event 13 | -11/Scrapyard | Discovered new exit (range 16) 38 | -11/Scrapyard | Entered Materials 129 | -10/Materials | Discovered new exit (range 6) 178 | -10/Materials | Discovered new exit (range 16) 315 | -10/Materials | Build established: Mutant 430 | -10/Materials | Discovered new exit (range 4) 601 | -10/Materials | Discovered new exit (range 16) 735 | -10/Materials | Identified exit to Mines 918 | -10/Materials | Entered Mines 1108 | -10/Mines | Core integrity fell below 50% 1149 | -10/Mines | Met a Derelict shopkeep closing up shop 1172 | -10/Mines | Discovered new exit (range 7) 1175 | -10/Mines | Assisted by bots powering up and referring to "LRC-V3" 1200 | -10/Mines | Discovered new exit (range 16) 1357 | -10/Mines | Learned location of Recycling (-9) 1511 | -10/Mines | Core integrity fell below 20% 1734 | -10/Mines | Deemed a non-threat by the Exiles lab entrance 1734 | -10/Mines | Discovered new exit (range 5) 1739 | -10/Mines | Entered Exiles 1739 | -10/Exiles | Found Exiles lab destroyed 1755 | -10/Exiles | Discovered new exit (range 15) 1823 | -10/Exiles | Build established: Scavenger-Mutant 2068 | -10/Exiles | Discovered new exit (range 10) 2373 | -10/Exiles | Entered Mines 2374 | -9/Mines | Learned location of Storage (-9) 2389 | -9/Mines | Met a Derelict bent on vengeance 2394 | -9/Mines | Learned location of Zion (-7) 2466 | -9/Mines | Found a hidden stash of uninstalled traps 2527 | -9/Mines | Assembled infested the area 2532 | -9/Mines | Assisted by a Guerilla fighting off Assembled 2580 | -9/Mines | Discovered new exit (range 11) 2610 | -9/Mines | Lost 3 allies 2652 | -9/Mines | Destroyed by as-68726 with Assembled Heavy Rifle Last Messages --------------- Knocked back. Com. Matter Pod destroyed. System corrupted by crushing effect (+5). Knocked back. Acquired 3 matter. System corrupted: Energy discharge (-42). as-07692 destroyed. Acquired 3 matter. R-06 Scavenger collects Mni. Grenade Launcher. Acquired 3 matter. U-05 Engineer builds a Wall. Knocked back. The unstable cave ceiling collapses. R-06 Scavenger collects Mni. Grenade Launcher. as-12757 sneak attacks. Aluminum Leg destroyed. System corrupted by crushing effect (+3). K-01 Serf collects debris. Acquired 4 matter. Assault Rifle destroyed. Map ----- +----------------------------------------------------+ | ?? ???????????????????????????????????????????? | | #??#????????????????? ??????????????????????? | | #???####????????????? ??????????????????????? | | #?### ###??????????? ??????????????????????? | | ### ##?????????? ??????????????????????? | | ## ##????????? ??????????????????????? | | #######??? ??????????????????????? | | #???# ??????????????????????? | | #### ### ## #??## #??????????????????????? | | ##??####?# #?????? ??????????????????????? | | ###????????# #??????# #??????????????????????? | | ##??????????# #??????# #??????????????????????? | | #???????????# ####???# #??????????????????????? | | #???????????# #???# ###????????????????????? | | ##???????????#### #???# ##???????????????????? | | ##???????????????# ##### ##??????????????????? | | ?????????????????# ###????????????????? | | ?????????????????######## #####????????????? | | #???????????????????????## #????????????? | | #????????????????????????#### *#" #????????????? | | #?????????????????????????#### =#"# #????????????? | | #?????????????????????????# ### #%# #????????????? | | ??????????????????????????# % ## #????????????? | | ????????????????????????### #%=### ##???????????? | | ????????????????????????# a% % a %# ##??????????? | | ????????????????????????#@k % # # ##?????????? | | ????????????????????????# # * # #?????????? | | ????????????????????????# ###### #?????????? | | ????????????????????????# #???? | | ????????????????????????# ####### #######???? | | ????????????????????????# #?????## #?????????? | | ???????????#########????# #??????# #?????????? | | ???????????# #????# #??????# #?????????? | | ???????????# < ######k#??????# ##?????????? | | ???????????# #??????# #??????????? | | ???????????# """########??????## ##??????????? | | ???????????# """#???????????????###???????????? | | ???????????# """#?????????????????????????????? | | ???????????# #?????????????????????????????? | | ???????????#########?????????????????????????????? | | ?????????????????????????????????????????????????? | | ?????????????????????????????????????????????????? | | | | | | | | | | | | | | | | | +----------------------------------------------------+ Best States ------------- Heat Dissipation 25 Energy Generation 14 Energy Capacity 250 Matter Stores 450 Matter Capacity 450 Sight Range 16 Terrain Scan Density 10 Armor Coverage 150 Evasion (%) 55 Item Schematics ----------------- None Robot Schematics ------------------ None Fabricated ------------ Nothing Alien Tech Used ----------------- None Achievements -------------- Slippery One Challenges ------------ None Game ------ Seed ThermicBeamRegenerator Manual? 0 Play Time 00:19:12 Cumulative 21.1 hours Start 2024.09.26 @ 02:59:59 End 2024.09.26 @ 03:16:57 Sessions 1 Manual Loads 0 Difficulty Rogue Special Mode None Game No. 24 Rogue 24 Adventurer 0 Explorer 0 Win Type - Total 0 Types 0/0/0/0/0/0/0/0/0 Lore% 7 Gallery% 20 Achievement% 19 Wizard Run 0 Options --------- Layout 2 ASCII 0 Keyboard 0 Movement Numpad Keybinds 0 Fullscreen 2 Font 48/Smallcaps Map View 50x44 Zoom Use 0% Tactical HUD 0 Map Filters NONE Filters NONE Steam 1 RUN: 79754b5b-7e5b-4cde-a501-9c0295632412